Cogmind - Beta 13 @@@ ROGUE MODE // 2024.07.24 @ 15:22:07 Player: Eggywontgrow Result: Destroyed by as-91214 with Assembled Blade Performance ------------- Evolutions (0) 0 Regions Visited (2) 400 Robots Destroyed (19) 95 Value Destroyed (361) 361 Prototype IDs (0) 0 Alien Tech Used (0) 0 Bonus (0) 0 TOTAL SCORE: 856 Bonus ------- None Cogmind --------- Core Integrity 0/250 Matter 300/300 Energy 100/100 System Corruption 2% Temperature Cool (40) Movement Core (200) Ox3 Location -10/Mines Parts ------- > --- POWER (1) -------- (None) > --- PROPULSION (2) --- (None) > --- UTILITY (2) ------ Medium Storage Unit > --- WEAPON (2) ------- (None) > --- INVENTORY (10) --- Ion Engine Light Treads Light Treads Small Storage Unit Sensor Array ECM Suite Medium Laser Assault Rifle Light Assault Rifle Mining Laser Peak State ------------ > --- POWER ------------ Ion Engine > --- PROPULSION ------- Light Treads Light Treads > --- UTILITY ---------- Medium Storage Unit Seismic Detector > --- WEAPON ----------- Beam Cannon Assault Rifle > --- INVENTORY -------- Ion Engine Light Treads Light Treads Small Storage Unit Sensor Array ECM Suite Medium Laser Light Assault Rifle Light Cannon Mining Laser [Rating: 8] Favorites ----------- Power Ion Engine Engine Ion Engine Propulsion Light Treads Treads Light Treads Utility Seismic Detector Device Seismic Detector Storage Medium Storage Unit Weapon Assault Rifle Energy Cannon Beam Cannon Ballistic Gun Assault Rifle Ballistic Cannon Light Cannon Build | -11 -10 -10 ------- Run | Yrd Mat Min Slots Evolved . | . . . Power . | . . . Propulsion . | . . . Utility . | . . . Weapon . | . . . Parts Attached 11 | 6 5 . Power 2 | 1 1 . Engine 2 | 1 1 . Core . | . . . Reactor . | . . . Propulsion 2 | 2 . . Treads 2 | 2 . . Leg . | . . . Wheel . | . . . Hover . | . . . Flight . | . . . Utility 3 | 1 2 . Device 1 | . 1 . Storage 2 | 1 1 . Processor . | . . . Hackware . | . . . Protection . | . . . Artifact . | . . . Weapon 4 | 2 2 . Energy Gun . | . . . Energy Cannon 1 | . 1 . Ballistic Gun 2 | 2 . . Ballistic Cannon 1 | . 1 . Launcher . | . . . Special Weapon . | . . . Impact Weapon . | . . . Slashing Weapon . | . . . Piercing Weapon . | . . . Special Melee Weapon . | . . . Unidentified Prototypes . | . . . Parts Lost 6 | . . 6 Power 1 | . . 1 Propulsion 2 | . . 2 Utility 1 | . . 1 Weapon 2 | . . 2 Highest Loss Streak 6 | . . 6 To Critical Strikes 1 | . . 1 Average Slot Usage (%) 99 | . 99 94 Engine 13 | . 14 11 Treads 27 | . 28 25 Device 13 | . 13 14 Storage 14 | . 14 14 Energy Cannon 12 | . 12 14 Ballistic Gun 11 | . 12 . Ballistic Cannon 3 | . 3 14 Naked Turns . | . . . Heaviest Build 22 | 11 22 22 Greatest Support 40 | 40 40 40 Greatest Overweight (x) 3 | . . 3 Average Overweight (x) . | . . . Largest Inventory Capacity 10 | 8 10 10 Average Capacity 9 | 7 9 10 Most Carried 10 | 6 10 10 Average Carried 6 | 3 7 10 Final Capacity 10 | 8 10 10 Final Carried 10 | 6 10 10 Class Distribution -------------------- 100% | Mutant Dominant Class ---------------- Mutant | -10/Materials Mutant | -10/Mines Resources | -11 -10 -10 ----------- Run | Yrd Mat Min Matter Collected 447 | 292 152 3 Remotely . | . . . Salvage Created 537 | 98 429 10 Parts 34 | 10 24 . Haulers Intercepted 1 | . 1 . Recyclers Shooed . | . . . Parts Field Recycled . | . . . Retrieved Matter . | . . . Parts Self-Destructed . | . . . Prevented . | . . . Kills | -11 -10 -10 ------- Run | Yrd Mat Min Combat Hostiles Destroyed 11 | . 10 1 Guns 2 | . 2 . Cannons 9 | . 8 1 Classes Destroyed 5 | 1 4 . Tunneler 6 | 5 1 . Hauler 1 | . 1 . Watcher 1 | . 1 . Swarmer 4 | . 3 1 Grunt 7 | . 7 . Best Kill Streak 4 | 2 4 1 Combat Bots Only 3 | . 3 1 Max Kills in Single Turn 2 | 2 1 1 Gunslinging . | . . . Exploded . | . . . Melee . | . . . Uniques/NPCs Destroyed . | . . . Combat | -11 -10 -10 -------- Run | Yrd Mat Min Hostile Shots Fired 117 | . 51 66 Missed 32 | . 8 24 Damage Taken 921 | . 471 450 Core 258 | . 97 161 Absorbed by Shields . | . . . Core Remaining (%) 100 | 100 . . Volleys Fired 48 | 8 35 5 Largest 2 | 2 2 2 Hottest 95 | 40 95 95 Shots Fired 98 | 16 72 10 Gun 46 | 16 30 . Cannon 52 | . 42 10 Launcher . | . . . Special . | . . . Kinetic 58 | 16 37 5 Thermal 40 | . 35 5 Explosive . | . . . Electromagnetic . | . . . Robot Hit Streak 12 | 6 12 2 Robot Miss Streak 7 | 1 7 4 Penetration Max . | . . . Secondary Targets . | . . . Shots Hit Robots 57 | 12 41 4 Core Hits 22 | 6 15 1 Critical Kills . | . . . Critical Parts Destroyed . | . . . Critical Strikes . | . . . Melee Attacks . | . . . Impact . | . . . Slashing . | . . . Piercing . | . . . Sneak Attacks . | . . . Combat Hostiles . | . . . Follow-up Attacks . | . . . Damage Inflicted 931 | 134 710 87 Guns 353 | 134 219 . Cannons 574 | . 487 87 Explosions . | . . . Melee . | . . . Ramming 4 | . 4 . Kinetic 455 | 134 287 34 Thermal 472 | . 419 53 Explosive . | . . . Electromagnetic . | . . . Impact . | . . . Slashing . | . . . Piercing . | . . . Highest Corruption 2 | . 2 2 Average Corruption 1 | . 1 2 Corruption Purged . | . . . Corruption Blocked . | . . . Effects 6 | . 5 1 Matter Fused 2 | . 2 . Energy Discharges 1 | . . 1 Data Loss (minor) 1 | . 1 . Misfires 2 | . 2 . Overload Shots . | . . . Overflow Damage 13 | . 13 . Projectiles 13 | . 13 . Explosions . | . . . Melee . | . . . Knockbacks 1 | . 1 . Impact . | . . . Kinetic 1 | . 1 . Secondary . | . . . Self-Inflicted Damage . | . . . Shots . | . . . Rammed 2 | . 2 . Targets Rammed 2 | . 2 . Kicked . | . . . Crushed . | . . . Highest Temperature 194 | . 194 69 Average Temperature 74 | . 80 35 Received Heat Transfer 228 | . 168 60 Siege Activations . | . . . Robots Corrupted . | . . . Combat Hostiles . | . . . Parts Fried . | . . . Impact Corruptions . | . . . Robots Melted . | . . . Combat Hostiles . | . . . Parts Melted 1 | . 1 . Heat Transferred 999 | . 888 111 Parts Sabotaged . | . . . Parts Stolen . | . . . Parts Stripped . | . . . Power Chain Reactions . | . . . Alert | -11 -10 -10 ------- Run | Yrd Mat Min Peak Influence 169 | 25 169 30 Initial 16 | . 16 7 Average 54 | 8 72 6 Maximum Alert Level . | . . . Low Security (%) 100 | 100 100 100 Level 1 . | . . . Level 2 . | . . . Level 3 . | . . . Level 4 . | . . . Level 5 . | . . . High Security . | . . . Max Security . | . . . Squads Dispatched 1 | . 1 . Investigation 1 | . 1 . Extermination . | . . . Reinforcement . | . . . Assault . | . . . Garrison . | . . . Intercept . | . . . Searches Triggered . | . . . Construction Impeded . | . . . Haulers Reinforced . | . . . Active Scanning Responses . | . . . Cargo Convoy Interrupts . | . . . Stealth | -11 -10 -10 --------- Run | Yrd Mat Min Distress Signals 1 | . 1 . Communications Jammed . | . . . Distress Signals . | . . . Times Spotted 35 | . 15 20 Peak Tracking Total 15 | . 4 15 Tactical Retreats . | . . . Traps | -11 -10 -10 ------- Run | Yrd Mat Min Traps Triggered 4 | . 4 . Indirectly . | . . . Trap Hack Attempts . | . . . Triggered . | . . . Disarmed . | . . . Reprogrammed . | . . . Reused . | . . . Traps Extracted . | . . . Installed . | . . . Triggered . | . . . Machines | -11 -10 -10 ---------- Run | Yrd Mat Min Machines Disabled 1 | . 1 . Max in Single Turn 1 | . 1 . Machines Repaired . | . . . Machines Dismantled . | . . . Machines Sabotaged . | . . . Overloaded Fab Kills . | . . . Hacking | -11 -10 -10 --------- Run | Yrd Mat Min Machines Accessed 2 | . 2 . Terminals . | . . . Fabricators . | . . . Repair Stations . | . . . Recycling Units 2 | . 2 . Scanalyzers . | . . . Garrison Access . | . . . Total Hacks 4 | . 4 . Successful 4 | . 4 . Failed . | . . . Catastrophic . | . . . Database Lockouts . | . . . Manual . | . . . Terminals . | . . . Fabricators . | . . . Repair Stations . | . . . Recycling Units 4 | . 4 . Scanalyzers . | . . . Garrison Access . | . . . Terminal Hacks . | . . . Fabricator Hacks . | . . . Repair Station Hacks . | . . . Recycling Unit Hacks 4 | . 4 . Report Inventory 2 | . 2 . Retrieve Matter 1 | . 1 . Retrieve Components 1 | . 1 . Scanalyzer . | . . . Garrison Access Hacks . | . . . Unauthorized Hacks . | . . . Terminals . | . . . Fabricators . | . . . Repair Stations . | . . . Recycling Units . | . . . Scanalyzers . | . . . Garrison Access . | . . . Data Cores Recovered . | . . . Used . | . . . Hacking Detections 1 | . 1 . Full Trace Events . | . . . Feedback Events . | . . . Feedback Blocked . | . . . Robot Schematics Acquired . | . . . Robots Built . | . . . Authchips . | . . . Time . | . . . Total Robot Build Rating . | . . . Part Schematics Acquired . | . . . Parts Built . | . . . Authchips . | . . . Time . | . . . Total Part Build Rating . | . . . Parts Repaired . | . . . Time . | . . . Parts Recycled . | . . . Recycled Matter . | . . . Retrieved Matter 16 | . 16 . Retrieved Components 3 | . 3 . Parts Scanalyzed . | . . . Part Schematics Acquired . | . . . Parts Damaged . | . . . Bothacking | -11 -10 -10 ------------ Run | Yrd Mat Min Used RIF Installer . | . . . Robots Hacked . | . . . Non-combat . | . . . Combat . | . . . Robot Hacks Applied . | . . . Relay Couplers Released . | . . . Fabnet Peak Effective % . | . . . Robots Rewired . | . . . Allies Hacked . | . . . Hacks Repelled . | . . . Allies | -11 -10 -10 -------- Run | Yrd Mat Min Total Allies . | . . . Largest Group . | . . . Highest-Rated Group . | . . . Highest-Rated Ally . | . . . Total Orders . | . . . Ally Attacks . | . . . Total Damage . | . . . Kills . | . . . Allies Corrupted . | . . . Allies Melted . | . . . Intel | -11 -10 -10 ------- Run | Yrd Mat Min Robot Analysis Total . | . . . Derelict Logs Recovered . | . . . Drone Launches . | . . . Drone Recoveries . | . . . Exploration | -11 -10 -10 ------------- Run | Yrd Mat Min Turns Passed 1157 | 268 831 58 Spaces Moved 584 | 148 413 23 Core 7 | 5 . 2 Treads 577 | 143 413 21 Legs . | . . . Wheels . | . . . Hover . | . . . Flight . | . . . Fastest Speed 50 | 50 160 160 Average Speed 159 | 156 160 166 Slowest Speed 240 | 160 160 240 Overloaded Moves . | . . . Propulsion Burnouts . | . . . Robots Hopped . | . . . Cave-ins Triggered . | . . . Exploration Rate (%) 22 | 6 50 11 Regions Visited 2 Branch Regions 1 Pre-discovered Areas . | . . . Known Exits Taken . | . . . Unknown Exits Taken 2 | 1 1 . Scrap Searched . | . . . Spaces Dug . | . . . Terrain Destroyed . | . . . Melee . | . . . Projectile . | . . . AOE . | . . . Terrain Rammed . | . . . Walls Destroyed . | . . . Machines Disabled . | . . . Actions | -11 -10 -10 --------- Run | Yrd Mat Min Total 713 | 167 513 33 Wait 50 | . 48 2 Move 582 | 147 412 23 Hop . | . . . Pick Up 12 | 6 6 . Fast Attach 7 | 6 1 . Attach 1 | . 1 . Detach 1 | . 1 . Swap 3 | . 3 . Drop 4 | . 4 . Fire 48 | 8 35 5 Melee . | . . . Ram . | . . . Kick . | . . . Crush 2 | . 2 . Escape Stasis . | . . . Rewire 3 | . . 3 Trap . | . . . Miscellaneous . | . . . Route ------- -11/Scrapyard -10/Materials (discovered 3 exits: [*Mat x2] / [*Min]) -10/Mines History --------- Turn | Location | Event 5 | -11/Scrapyard | Discovered new exit (range 16) 269 | -11/Scrapyard | Entered Materials 302 | -10/Materials | Build established: Mutant 439 | -10/Materials | Discovered new exit (range 9) 503 | -10/Materials | Discovered new exit (range 10) 727 | -10/Materials | Discovered new exit (range 14) 1100 | -10/Materials | Entered Mines 1129 | -10/Mines | Core integrity fell below 50% 1130 | -10/Mines | Assembled infested the area 1135 | -10/Mines | Assisted by a Guerilla fighting off Assembled 1158 | -10/Mines | Core integrity fell below 20% 1158 | -10/Mines | Destroyed by as-91214 with Assembled Blade Last Messages --------------- 01136_ S-10 Pest suffers critical hit (Destroy). 01136_ S-10 Pest destroyed. 01140_ Lgt. Treads destroyed. 01142_ S-10 Pest destroyed. 01144_ HV Slug penetrates as-26048. 01144_ as-26048 suffers critical hit (Destroy). 01144_ as-26048 destroyed. 01146_ Ion Engine destroyed. 01149_ S-10 Pest destroyed. 01150_ HV Slug penetrates as-84756. 01150_ as-84756 suffers critical hit (Destroy). 01150_ as-84756 destroyed. 01150_ Critical hit (Destroy). 01150_ Beam Cannon destroyed. 01150_ DO-JAH(h) destroyed. 01153_ Lgt. Cannon destroyed. 01154_ as-61372 destroyed. 01155_ Lgt. Treads destroyed. 01156_ Seismic Detector destroyed. 01157_ Acquired 3 matter. Map ----- +----------------------------------------------------+ | ????????????????????????????????????????????? | | ????????????????????????????????????????????? | | ????????????????????????????????????????????? | | ????????????????????????????#####???????????? | | ???????????????????????????# ###?????????? | | ?????????????????????????## ##????????? | | ????????????????????????## #????????? | | ?????????????????????#### [ #????????? | | ?????????????????????? % #?????????? | | ??????????????????????? / #?????????? | | ???????????????????????## #?????????? | | ???????????????????????# #?????????? | | ???????????????????????# #?????????? | | ???????????????????????## ##?????????? | | ????????????????????????## ##??????????? | | ?????????????????????????# [ #???????????? | | ?????????????????????????# ##???????????? | | ?????????????????????????# #????????????? | | ?????????????????????????## #?#??????????? | | ??????????????????????????# # #??????????? | | ??????????????????????????# ;#???????????? | | ??????????????????????????#! #????????????? | | ??????????????????????????# #????????????? | | ??????????????????######### #????????????? | | ?????????????????## a#;%%! ##????????????? | | ?????????????????# a a@*! #?????????????? | | ?????????????????# a a=% ##?????????????? | | ?????????????????# aaaa [ ##??????????????? | | ?????????????????## aa%## #???????????????? | | ?????????????????#;% %a### #???????????????? | | ???????????????? a %##?# #???????????????? | | ?????????????? % ##??# #???????????????? | | ?????????????########???? #???????????????? | | ?????????????????????????####???????????????? | | ????????????????????????????????????????????? | | ????????????????????????????????????????????? | | ????????????????????????????????????????????? | | ????????????????????????????????????????????? | | ????????????????????????????????????????????? | | ????????????????????????????????????????????? | | ????????????????????????????????????????????? | | ????????????????????????????????????????????? | | ????????????????????????????????????????????? | | ????????????????????????????????????????????? | | ????????????????????????????????????????????? | | ????????????????????????????????????????????? | | ????????????????????????????????????????????? | | ????????????????????????????????????????????? | | ????????????????????????????????????????????? | | ????????????????????????????????????????????? | +----------------------------------------------------+ Best States ------------- Heat Dissipation 25 Energy Generation 10 Energy Capacity 250 Matter Stores 300 Matter Capacity 300 Sight Range 16 Terrain Scan Density 10 Evasion (%) 40 Recoil Reduction 2 Item Schematics ----------------- None Robot Schematics ------------------ None Fabricated ------------ Nothing Alien Tech Used ----------------- None Achievements -------------- None Challenges ------------ None Game ------ Seed BombardmentGuidedMeganuke Manual? 0 Play Time 00:14:42 Cumulative 12.7 hours Start 2024.07.24 @ 14:54:01 End 2024.07.24 @ 15:22:07 Sessions 1 Manual Loads 0 Difficulty Rogue Special Mode None Game No. 18 Rogue 18 Adventurer 0 Explorer 0 Win Type - Total 0 Types 0/0/0/0/0/0/0/0/0 Lore% 11 Gallery% 19 Achievement% 18 Wizard Run 0 Options --------- Layout 0 ASCII 0 Keyboard 1 Movement Numpad Keybinds 1 Fullscreen 2 Font 24/Smallcaps Map View 76x50 Zoom Use 57% Tactical HUD 1 Map Filters NONE Filters NONE Steam 1 RUN: 8b6dd164-1677-4bc5-bb64-fc81829bbcb1